fUST/lending_fUST_20240424
["ID","MTS","AMOUNT","RATE_DAILY","PERIOD"]
[323331030,1713901844991,-1648.32,0.00019452,2]
[323331032,1713901845000,-500.0,0.00019452,2]
[323331034,1713901845009,-500.0,0.00019452,2]
[323331036,1713901845018,-599.85,0.00019452,2]
[323331038,1713901845027,-500.0,0.00019452,2]
[323331040,1713901845036,-500.0,0.00019452,2]
[323331042,1713901845044,-500.0,0.00019452,2]
[323331044,1713901845053,-1644.87,0.00019452,2]
[323331046,1713901845062,-1378.53,0.00019452,2]
[323331048,1713901845071,-500.0,0.00019452,2]
[323331050,1713901845080,-500.0,0.00019452,2]
[323331052,1713901845089,-500.0,0.00019452,2]
[323331054,1713901845098,-1128.86,0.00019452,2]
[323331056,1713901845107,-1017.36,0.00019452,2]
[323331058,1713901845116,-500.0,0.00019452,2]
[323331060,1713901845125,-500.0,0.00019452,2]
[323331062,1713901845134,-1933.8,0.00019452,2]
[323331064,1713901845143,-500.0,0.00019452,2]
[323331066,1713901845152,-766.23,0.00019452,2]
[323331068,1713901845161,-500.0,0.00019452,2]
[323331070,1713901845170,-622.24,0.00019452,2]
[323331072,1713901845179,-368.58439771,0.00019452,2]
[323331074,1713901845188,-500.0,0.00019452,2]
[323331076,1713901845198,-500.0,0.00019452,2]
[323331078,1713901845207,-500.0,0.00019452,2]
[323331080,1713901845216,-500.0,0.00019452,2]
[323331082,1713901845224,-500.0,0.00019452,2]
[323331092,1713901845308,-1375.0,0.00019452,2]
[323331094,1713901845317,-500.0,0.00019452,2]
[323331096,1713901845326,-500.0,0.00019452,2]
[323331098,1713901845335,-500.0,0.00019452,2]
[323331100,1713901845343,-500.0,0.00019452,2]
[323331103,1713901845353,-500.0,0.00019452,2]
[323331104,1713901845362,-500.0,0.00019452,2]
[323331107,1713901845371,-500.0,0.00019452,2]
[323331109,1713901845382,-500.0,0.00019452,2]
[323331111,1713901845391,-500.0,0.00019452,2]
[323331113,1713901845400,-1135.18,0.00019452,2]
[323331115,1713901845409,-500.0,0.00019452,2]
[323331117,1713901845418,-500.0,0.00019452,2]
[323331119,1713901845427,-151.0,0.00019452,2]
[323331121,1713901845435,-151.0,0.00019452,2]
[323331122,1713901845444,-2095.73,0.00019452,2]
[323331124,1713901845454,-500.0,0.00019452,2]
[323331126,1713901845463,-500.0,0.00019452,2]
[323331128,1713901845472,-920.74,0.00019452,2]
[323331130,1713901845481,-123.74905593,0.00019452,2]
[323331333,1713901865360,297.72,0.000241,35]
[323331344,1713902124729,1419.60805677,0.00013673,2]
[323331345,1713902224663,150.5,0.000241,35]
[323331346,1713902225247,150.5,0.0002409,35]
[323331347,1713902225832,150.5,0.0002408,35]
[323331348,1713902233981,1206.67266007,0.00024842,30]
[323331386,1713902584619,150.5,0.000241,35]
[323331387,1713902585242,150.5,0.0002409,35]
[323331388,1713902585810,150.5,0.0002408,35]
[323331389,1713902586400,150.5,0.0002493,35]
[323331390,1713902586990,150.5,0.0002492,35]
[323331391,1713902587571,189.75,0.0002491,35]
[323331396,1713902705797,5000.0,0.00012152,2]
[323331397,1713902705829,5000.0,0.00012152,2]
[323331400,1713902785267,309.65937468,0.00012018,2]
[323331401,1713902793800,4584.34208189,0.00012017,2]
[323331402,1713902802016,3510.6014547,0.00012016,2]
[323331403,1713902810756,1678.29832492,0.00012015,2]
[323331404,1713902818984,913.00756913,0.00012013,2]
[323331405,1713902823885,386.01178664,0.00012018,2]
[323331406,1713902824969,692.70825887,0.00012018,2]
[323331407,1713902826952,832.5508841,0.00012012,2]
[323331408,1713902835695,316.85209645,0.0001201,2]
[323331409,1713902839870,386.01178664,0.00012018,2]
[323331410,1713902841125,-162.02240911,0.00012132,2]
[323331411,1713902841149,-154.82968734,0.00012132,2]
[323331412,1713902841170,-183.14790355,0.00012132,2]
[323331413,1713902842938,692.70825887,0.00012018,2]
[323331414,1713902843787,8705.32273967,0.0001201,2]
[323331415,1713902846098,-835.58,0.00012131,2]
[323331416,1713902851969,1298.44722327,0.00012009,2]
[323331417,1713902852222,158.48568276,0.00012032,2]
[323331418,1713902853169,-187.2839657,0.0001213,2]
[323331419,1713902853190,-808.46399951,0.0001213,2]
[323331420,1713902853211,-1202.20163216,0.0001213,2]
[323331421,1713902853236,-154.82968734,0.0001213,2]
[323331422,1713902853256,-1394.46359454,0.0001213,2]
[323331423,1713902853277,-564.51895848,0.0001213,2]
[323331424,1713902853297,-476.16164115,0.00012131,2]
[323331425,1713902853317,-154.82968734,0.00012131,2]
[323331426,1713902853337,-5801.77357762,0.00012131,2]
[323331427,1713902853361,-124.17674616,0.00012131,2]
[323331428,1713902857257,158.48568276,0.00012035,2]
[323331429,1713902857888,386.01178664,0.0001201,2]
[323331430,1713902862214,158.48568276,0.00012038,2]
[323331431,1713902864947,176.44832058,0.0001201,2]
[323331432,1713902867203,158.48568276,0.00012041,2]
[323331433,1713902881884,232.36178465,0.0001201,2]
[323331435,1713902944753,1232.0,0.0002419,35]
[323331436,1713902945152,-154.82968734,0.00012116,2]
[323331437,1713902945186,-154.82968734,0.00012116,2]
[323331438,1713902945221,-1090.52068603,0.00012116,2]
[323331439,1713902945253,-526.34381075,0.00012116,2]
[323331440,1713902945287,-300.0,0.00012116,2]
[323331441,1713902945319,-300.0,0.00012116,2]
[323331442,1713902945340,-283.38557575,0.00012117,2]
[323331443,1713902945528,-362.01061268,0.00012117,2]
[323331444,1713902945549,-154.82968734,0.00012117,2]
[323331445,1713902945570,-329.62886819,0.00012117,2]
[323331446,1713902945590,-1311.74164115,0.00012117,2]
[323331447,1713902945609,-157.76351589,0.00012117,2]
[323331448,1713902945629,-471.87732034,0.00012117,2]
[323331449,1713902945649,-1620.29564358,0.00012117,2]
[323331450,1713902945669,-1578.09578874,0.00012118,2]
[323331451,1713902945688,-154.82968734,0.00012118,2]
[323331452,1713902945709,-1490.32391025,0.00012118,2]
[323331453,1713902945728,-212.06825711,0.00012118,2]
[323331454,1713902945748,-701.94771615,0.00012118,2]
[323331455,1713902945768,-308.49906714,0.00012118,2]
[323331456,1713902945790,-519.95768087,0.00012118,2]
[323331457,1713902945811,-474.79230604,0.00012119,2]
[323331458,1713902945832,-2587.76784421,0.00012119,2]
[323331459,1713902945852,-1678.29832492,0.00012119,2]
[323331460,1713902945874,-977.80653021,0.00012119,2]
[323331461,1713902945897,-154.82968734,0.00012119,2]
[323331462,1713902945919,-154.82968734,0.00012119,2]
[323331463,1713902945944,-977.80653021,0.00012119,2]
[323331464,1713902945965,-203.84630574,0.0001212,2]
[323331465,1713902945985,-459.70738052,0.0001212,2]
[323331466,1713902946006,-673.55445774,0.0001212,2]
[323331467,1713902946028,-768.00392315,0.0001212,2]
[323331468,1713902946048,-154.82968734,0.00012121,2]
[323331469,1713902946069,-883.78313678,0.00012121,2]
[323331470,1713902946091,-1878.1368462,0.00012121,2]
[323331471,1713902946112,-2623.97456043,0.00012121,2]
[323331472,1713902946133,-623.77275616,0.00012121,2]
[323331473,1713902946153,-1490.32391025,0.00012121,2]
[323331474,1713902946175,-161.90603582,0.00012121,2]
[323331475,1713902946195,-154.82968734,0.00012121,2]
[323331476,1713902946215,-187.2839657,0.00012121,2]
[323331477,1713902946235,-309.65937468,0.00012122,2]
[323331478,1713902946256,-207.89139513,0.00012122,2]
[323331479,1713902946276,-549.53648482,0.00012123,2]
[323331480,1713902946296,-521.52942585,0.00012123,2]
[323331481,1713902946317,-408.87824963,0.00012123,2]
[323331482,1713902946337,-193.60170872,0.00012123,2]
[323331483,1713902946357,-7866.94121737,0.00012123,2]
[323331484,1713902946378,-26749.03813271,0.00012123,2]
[323331485,1713902946437,1232.0,0.0002418,35]
[323331486,1713902946529,1232.0,0.0002417,35]
[323331487,1713902946634,1232.0,0.00024889,35]
[323331488,1713902947237,1232.0,0.00024879,35]
[323331489,1713902947730,1232.0,0.00024869,35]
[323331490,1713902948139,-448.56571186,0.00012115,2]
[323331491,1713902948160,-21210.17015663,0.00012123,2]
[323331492,1713902954105,-173.22582113,0.00012115,2]
[323331493,1713902954126,-6781.4707819,0.00012116,2]
[323331494,1713902954149,-183643.05339697,0.00012123,2]
[323331497,1713902957110,-883.78313678,0.00012122,2]
[323331498,1713902957131,-155.03695194,0.00012122,2]
[323331499,1713902957152,-178382.66033071,0.00012123,2]
[323331500,1713902957173,-59159.66057733,0.00012124,2]
[323331501,1713902957193,-72560.09039098,0.00012125,2]
[323331502,1713902957213,-468.44380318,0.00012132,2]
[323331503,1713902957233,-154.84515485,0.00012132,2]
[323331504,1713902957253,-244.18563066,0.00012132,2]
[323331505,1713902957273,-309.65937468,0.00012132,2]
[323331506,1713902957294,-1222.60715673,0.00012132,2]
[323331507,1713902957314,-550.59414962,0.00012132,2]
[323331508,1713902957335,-733.90156398,0.00012132,2]
[323331509,1713902957355,-564.51895848,0.00012132,2]
[323331510,1713902957375,-1201.0302174,0.00012132,2]
[323331511,1713902957395,-154.82968734,0.00012138,2]
[323331512,1713902957415,-1057.03497015,0.00012138,2]
[323331513,1713902957435,-309.65937468,0.00012138,2]
[323331514,1713902957455,-247.22010741,0.00012138,2]
[323331515,1713902957475,-258.17604413,0.00012138,2]
[323331516,1713902957496,-1016.00046324,0.00012151,2]
[323331517,1713902957517,-14900.0,0.00012152,2]
[323331518,1713902957539,-203.50588859,0.0001311,2]
[323331519,1713902957559,-1608.97649909,0.0001311,2]
[323331520,1713902957581,-239.27189585,0.0001311,2]
[323331521,1713902957600,-205.72096113,0.0001311,2]
[323331522,1713902957621,-670.60028968,0.0001311,2]
[323331523,1713902957642,-420.0,0.00013299,2]
[323331524,1713902957662,-420.0,0.00013327,2]
[323331525,1713902957685,-454.21290969,0.00013599,2]
[323331526,1713902957706,-2524.009845,0.00013699,2]
[323331527,1713902957727,-1013.2178602,0.00013699,2]
[323331528,1713902957747,-17161.72289364,0.00013699,2]
[323331534,1713902965110,-199.80945329,0.00012122,2]
[323331535,1713902965128,-701.94771615,0.00012122,2]
[323331536,1713902965148,-474.79230604,0.00012122,2]
[323331537,1713902965167,-233.03244478,0.00012122,2]
[323331538,1713902965186,-1090.52068603,0.00012122,2]
[323331539,1713902965203,-156.3480469,0.00012122,2]
[323331540,1713902965222,-207.89139513,0.00012122,2]
[323331541,1713902965240,-1620.29564358,0.00012122,2]
[323331542,1713902965258,-439.24201302,0.00012122,2]
[323331543,1713902965277,-154.82968734,0.00012122,2]
[323331544,1713902965299,-193.60170872,0.00012122,2]
[323331545,1713902965317,-202.19332435,0.00012122,2]
[323331546,1713902965337,-186.87763945,0.00012122,2]
[323331547,1713902965356,-1678.29832492,0.00012122,2]
[323331548,1713902965375,-547.85031934,0.00012122,2]
[323331550,1713902965395,-8213.10195282,0.00012122,2]
[323331555,1713902967109,768.00392315,0.0001091,2]
[323331559,1713902977808,769.3667552,0.00012001,2]
[323331570,1713903007833,157.76351589,0.00011999,2]
[323331578,1713903027048,18313.15486392,0.00011999,2]
[323331579,1713903027078,871.83901933,0.00011999,2]
[323331580,1713903027936,280.57604079,0.00011999,2]
[323331601,1713903031921,-187.2839657,0.00012116,2]
[323331602,1713903031930,-283.38557575,0.00012116,2]
[323331603,1713903031940,-85.01193064,0.00012116,2]
[323331604,1713903031951,-382.56537158,0.00012116,2]
[323331605,1713903031981,-492.04,0.00012116,2]
[323331634,1713903038237,-673.55445774,0.00012115,2]
[323331636,1713903038252,-623.77275616,0.00012115,2]
[323331639,1713903038267,-352.12433893,0.00012116,2]
[323331641,1713903038282,-1620.29564358,0.00012116,2]
[323331643,1713903038297,-154.82968734,0.00012116,2]
[323331645,1713903038312,-1878.1368462,0.00012116,2]
[323331647,1713903038327,-329.62886819,0.00012116,2]
[323331650,1713903038344,-59159.66057733,0.00012116,2]
[323331652,1713903038359,-193.60170872,0.00012116,2]
[323331654,1713903038374,-173.22582113,0.00012116,2]
[323331656,1713903038389,-2587.76784421,0.00012117,2]
[323331659,1713903038403,-2623.97456043,0.00012117,2]
[323331661,1713903038417,-521.52942585,0.00012117,2]
[323331663,1713903038432,-7866.94121737,0.00012117,2]
[323331666,1713903038445,-448.56571186,0.00012117,2]
[323331668,1713903038460,-459.70738052,0.00012117,2]
[323331670,1713903038476,-4936.40128897,0.00012117,2]
[323331672,1713903038490,-157.76351589,0.00012118,2]
[323331675,1713903038504,-154.82968734,0.00012118,2]
[323331677,1713903038519,-203.84630574,0.00012118,2]
[323331679,1713903038528,-1578.09578874,0.00012118,2]
[323331681,1713903038538,-362.01061268,0.00012118,2]
[323331696,1713903038701,-724.3740949,0.00012118,2]
[323331698,1713903038714,-765.94981535,0.00012118,2]
[323331699,1713903038724,-154.82968734,0.00012118,2]
[323331700,1713903038733,-308.49906714,0.00012118,2]
[323331701,1713903038743,-526.34381075,0.00012119,2]
[323331702,1713903038752,-154.82968734,0.0001212,2]
[323331703,1713903038762,-154.82968734,0.0001212,2]
[323331704,1713903038771,-7089.07783702,0.0001212,2]
[323331705,1713903038784,-65471.01255396,0.0001212,2]
[323331706,1713903038795,-519.95768087,0.0001212,2]
[323331707,1713903038804,-206.02600307,0.0001212,2]
[323331708,1713903038813,-154.95429644,0.0001212,2]
[323331709,1713903038823,-240.47928456,0.0001212,2]
[323331710,1713903038832,-197.607947,0.0001212,2]
[323331711,1713903038843,-304.93752392,0.0001212,2]
[323331712,1713903038854,-154.82968734,0.0001212,2]
[323331713,1713903038863,-309.65937468,0.00012121,2]
[323331714,1713903038872,-154.87609912,0.00012121,2]
[323331715,1713903038881,-154.82968734,0.00012121,2]
[323331716,1713903038890,-5801.77357762,0.00012121,2]
[323331717,1713903038899,-300.0,0.00012121,2]
[323331718,1713903038908,-300.0,0.00012121,2]
[323331719,1713903038918,-409984.92201702,0.00012122,2]
[323331720,1713903038927,-420.0,0.00013304,2]
[323331721,1713903038936,-420.0,0.00013333,2]
[323331722,1713903038945,-3396.56342044,0.00013595,2]
[323331723,1713903038955,-3533.14627737,0.00013695,2]
[323331724,1713903038965,-534.4815085,0.00013697,2]
[323331725,1713903038975,-408.87824963,0.00013697,2]
[323331726,1713903038987,-979.31715741,0.00013698,2]
[323331727,1713903038997,-163.75223167,0.00013698,2]
[323331728,1713903039006,-23487.96714576,0.00013699,2]
[323331729,1713903039016,-2881.819701,0.00013699,2]
[323331730,1713903039026,-927.73627561,0.00014,2]
[323331731,1713903039035,-587.0,0.00014603,2]
[323331732,1713903039045,-587.0,0.00014666,2]
[323331733,1713903039055,-3396.56342044,0.00014671,2]
[323331734,1713903039064,-301.74187726,0.00014999,2]
[323331735,1713903039075,-2775.48792824,0.00015,2]
[323331736,1713903039084,-938.58206509,0.00015,2]
[323331737,1713903039095,-157.03688122,0.00015,2]
[323331738,1713903039105,-154.82968734,0.00015,2]
[323331739,1713903039114,-628.221272,0.00015,2]
[323331740,1713903039126,-312.61134477,0.00015,2]
[323331741,1713903039135,-3396.56342044,0.00015748,2]
[323331742,1713903039146,-1675.82446385,0.00016007,2]
[323331743,1713903039157,-154.82968734,0.00016007,2]
[323331744,1713903039167,-2099.47208497,0.00016022,2]
[323331745,1713903039179,-823.0,0.00016029,2]
[323331746,1713903039189,-823.0,0.00016133,2]
[323331748,1713903039199,-400.65062776,0.00016438,2]
[323331750,1713903039208,-3396.56342044,0.00016824,2]
[323331751,1713903039218,-768.00392315,0.00017258,2]
[323331753,1713903039228,-272.57129579,0.00017587,2]
[323331755,1713903039238,-1152.0,0.00017594,2]
[323331756,1713903039249,-1167.45133884,0.000176,2]
[323331758,1713903039259,-1152.0,0.00017746,2]
[323331760,1713903039269,-3396.56342044,0.000179,2]
[323331762,1713903039278,-202.14637118,0.00017992,2]
[323331764,1713903039287,-154.84515175,0.00017992,2]
[323331765,1713903039297,-154.84515485,0.00017993,2]
[323331767,1713903039306,-7616.20738606,0.00017993,2]
[323331769,1713903039314,-200.0,0.00017996,2]
[323331771,1713903039324,-172.3190033,0.00017996,2]
[323331773,1713903039333,-158.98533641,0.00017996,2]
[323331775,1713903039347,-15029.53981042,0.00018,2]
[323331776,1713903039366,-447.78264582,0.00018,2]
[323331778,1713903039380,-3384.66457059,0.00018,2]
[323331780,1713903039390,-154.6736905,0.00018225,2]
[323331782,1713903039399,-306.0,0.00018548,2]
[323331784,1713903039408,-189.15723965,0.0001897,2]
[323331786,1713903039417,-156.0816682,0.00019,2]
[323331787,1713903039426,-154.9755911,0.00019,2]
[323331789,1713903039436,-155.0802538,0.00019,2]
[323331791,1713903039445,-637.9252794,0.00019019,2]
[323331793,1713903039454,-687.16952039,0.0001902,2]
[323331795,1713903039463,-626.79213198,0.00019175,2]
[323331797,1713903039472,-539.84959505,0.00019175,2]
[323331799,1713903039481,-437.69132994,0.00019175,2]
[323331801,1713903039490,-207.89139513,0.00019175,2]
[323331802,1713903039499,-1394.46359454,0.00019175,2]
[323331803,1713903039508,-305.51599866,0.00019175,2]
[323331804,1713903039518,-564.51895848,0.00019175,2]
[323331805,1713903039526,-212.06825711,0.00019176,2]
[323331806,1713903039535,-1678.29832492,0.00019176,2]
[323331807,1713903039544,-1202.20163216,0.00019176,2]
[323331808,1713903039553,-309.62844895,0.00019176,2]
[323331809,1713903039562,-155.13452116,0.00019177,2]
[323331812,1713903039571,-373.70689802,0.00019177,2]
[323331813,1713903039580,-76096.36104427,0.00019178,2]
[323331815,1713903039589,-500.0,0.00019178,2]
[323331817,1713903039598,-500.0,0.00019178,2]
[323331819,1713903039607,-569.99446454,0.00019178,2]
[323331820,1713903039616,-500.0,0.00019178,2]
[323331821,1713903039625,-500.0,0.00019178,2]
[323331822,1713903039634,-500.0,0.00019178,2]
[323331824,1713903039643,-500.0,0.00019178,2]
[323331826,1713903039652,-500.0,0.00019178,2]
[323331827,1713903039661,-509.08586234,0.00019178,2]
[323331828,1713903039670,-500.0,0.00019178,2]
[323331829,1713903039678,-500.0,0.00019178,2]
[323331830,1713903039687,-500.0,0.00019178,2]
[323331831,1713903039697,-500.0,0.00019178,2]
[323331832,1713903039706,-500.0,0.00019178,2]
[323331833,1713903039715,-500.0,0.00019178,2]
[323331834,1713903039724,-500.0,0.00019178,2]
[323331835,1713903039733,-500.0,0.00019178,2]
[323331836,1713903039742,-500.0,0.00019178,2]
[323331837,1713903039751,-500.0,0.00019178,2]
[323331839,1713903039761,-500.0,0.00019178,2]
[323331841,1713903039770,-500.0,0.00019178,2]
[323331843,1713903039779,-500.0,0.00019178,2]
[323331844,1713903039788,-500.0,0.00019178,2]
[323331846,1713903039797,-500.0,0.00019178,2]
[323331848,1713903039806,-300.10057165,0.00019178,2]
[323331850,1713903039816,-500.0,0.00019178,2]
[323331851,1713903039825,-152.73282534,0.00019178,2]
[323331853,1713903039834,-500.0,0.00019178,2]
[323331854,1713903039845,-500.0,0.00019178,2]
[323331855,1713903039854,-500.0,0.00019178,2]
[323331856,1713903039863,-500.0,0.00019178,2]
[323331858,1713903039872,-500.0,0.00019178,2]
[323331860,1713903039881,-500.0,0.00019178,2]
[323331861,1713903039890,-500.0,0.00019178,2]
[323331863,1713903039899,-251.20798367,0.00019178,2]
[323331865,1713903039908,-541.15470908,0.00019178,2]
[323331866,1713903039917,-195.44877316,0.00019178,2]
[323331868,1713903039926,-500.0,0.00019178,2]
[323331870,1713903039935,-500.0,0.00019178,2]
[323331872,1713903039944,-500.0,0.00019178,2]
[323331873,1713903039954,-316.5081703,0.00019178,2]
[323331875,1713903039963,-500.0,0.00019178,2]
[323331877,1713903039973,-386.17430036,0.00019178,2]
[323331879,1713903039986,-500.0,0.00019178,2]
[323331881,1713903039995,-627.83520974,0.00019178,2]
[323331882,1713903040005,-500.0,0.00019178,2]
[323331883,1713903040015,-500.0,0.00019178,2]
[323331884,1713903040026,-500.0,0.00019178,2]
[323331885,1713903040035,-984.57,0.00019178,2]
[323331887,1713903040044,-500.0,0.00019178,2]
[323331888,1713903040054,-572.31,0.00019178,2]
[323331889,1713903040064,-697.84,0.00019178,2]
[323331890,1713903040074,-615.15,0.00019178,2]
[323331891,1713903040082,-500.0,0.00019178,2]
[323331892,1713903040092,-500.0,0.00019178,2]
[323331893,1713903040101,-500.0,0.00019178,2]
[323331894,1713903040110,-500.0,0.00019178,2]
[323331895,1713903040119,-500.0,0.00019178,2]
[323331896,1713903040128,-500.0,0.00019178,2]
[323331897,1713903040137,-500.0,0.00019178,2]
[323331898,1713903040147,-500.0,0.00019178,2]
[323331899,1713903040157,-500.0,0.00019178,2]
[323331900,1713903040167,-500.0,0.00019178,2]
[323331901,1713903040177,-500.0,0.00019178,2]
[323331902,1713903040186,-500.0,0.00019178,2]
[323331903,1713903040195,-500.0,0.00019178,2]
[323331904,1713903040205,-500.0,0.00019178,2]
[323331905,1713903040215,-500.0,0.00019178,2]
[323331906,1713903040225,-500.0,0.00019178,2]
[323331907,1713903040235,-1887.52,0.00019178,2]
[323331908,1713903040245,-517.12,0.00019178,2]
[323331909,1713903040254,-500.0,0.00019178,2]
[323331910,1713903040264,-500.0,0.00019178,2]
[323331911,1713903040275,-500.0,0.00019178,2]
[323331912,1713903040285,-625.12,0.00019178,2]
[323331913,1713903040295,-500.0,0.00019178,2]
[323331914,1713903040305,-500.0,0.00019178,2]
[323331915,1713903040315,-500.0,0.00019178,2]
[323331916,1713903040325,-500.0,0.00019178,2]
[323331917,1713903040335,-500.0,0.00019178,2]
[323331918,1713903040349,-500.0,0.00019178,2]
[323331926,1713903040437,-500.0,0.00019178,2]
[323331927,1713903040448,-500.0,0.00019178,2]
[323331930,1713903040459,-500.0,0.00019178,2]
[323331932,1713903040468,-500.0,0.00019178,2]
[323331934,1713903040479,-500.0,0.00019178,2]
[323331936,1713903040490,-500.0,0.00019178,2]
[323331938,1713903040499,-1091.25,0.00019178,2]
[323331940,1713903040509,-500.0,0.00019178,2]
[323331942,1713903040520,-500.0,0.00019178,2]
[323331944,1713903040530,-500.0,0.00019178,2]
[323331946,1713903040539,-500.0,0.00019178,2]
[323331948,1713903040549,-500.0,0.00019178,2]
[323331950,1713903040559,-500.0,0.00019178,2]
[323331952,1713903040569,-502.5839352,0.00019178,2]
[323331954,1713903040581,-551.38,0.00019178,2]
[323331956,1713903040591,-464.8522927,0.00019178,2]
[323331958,1713903040601,-500.0,0.00019178,2]
[323331960,1713903040612,-576.81,0.00019178,2]
[323331962,1713903040621,-500.0,0.00019178,2]
[323331964,1713903040631,-500.0,0.00019178,2]
[323331966,1713903040640,-609.50589766,0.00019178,2]
[323331968,1713903040649,-500.0,0.00019178,2]
[323331970,1713903040658,-501.48050601,0.00019178,2]
[323331972,1713903040667,-500.0,0.00019178,2]
[323331974,1713903040677,-500.0,0.00019178,2]
[323331976,1713903040686,-500.0,0.00019178,2]
[323331978,1713903040695,-526.38,0.00019178,2]
[323331980,1713903040705,-500.0,0.00019178,2]
[323331982,1713903040714,-500.0,0.00019178,2]
[323331984,1713903040723,-500.0,0.00019178,2]
[323331986,1713903040733,-500.0,0.00019178,2]
[323331988,1713903040743,-500.0,0.00019178,2]
[323331990,1713903040752,-500.0,0.00019178,2]
[323331992,1713903040762,-500.0,0.00019178,2]
[323331994,1713903040771,-500.0,0.00019178,2]
[323331996,1713903040780,-500.0,0.00019178,2]
[323331998,1713903040789,-500.0,0.00019178,2]
[323332000,1713903040798,-500.0,0.00019178,2]
[323332001,1713903040807,-500.0,0.00019178,2]
[323332004,1713903040817,-500.0,0.00019178,2]
[323332006,1713903040826,-500.0,0.00019178,2]
[323332008,1713903040838,-500.0,0.00019178,2]
[323332010,1713903040848,-500.0,0.00019178,2]
[323332011,1713903040858,-500.0,0.00019178,2]
[323332013,1713903040868,-500.0,0.00019178,2]
[323332016,1713903040878,-500.0,0.00019178,2]
[323332018,1713903040887,-432.44540321,0.00019178,2]
[323332019,1713903040897,-500.0,0.00019178,2]
[323332021,1713903040907,-268.08554988,0.00019178,2]
[323332023,1713903040916,-534.78958072,0.00019178,2]
[323332025,1713903040925,-500.0,0.00019178,2]
[323332028,1713903040936,-500.0,0.00019178,2]
[323332029,1713903040945,-200.96345925,0.00019178,2]
[323332031,1713903040954,-500.0,0.00019178,2]
[323332034,1713903040964,-500.0,0.00019178,2]
[323332035,1713903040975,-500.0,0.00019178,2]
[323332037,1713903040986,-500.74986126,0.00019178,2]
[323332040,1713903040995,-390.57208478,0.00019178,2]
[323332041,1713903041005,-500.0,0.00019178,2]
[323332043,1713903041015,-500.0,0.00019178,2]
[323332045,1713903041025,-500.0,0.00019178,2]
[323332047,1713903041035,-2218.9,0.00019178,2]
[323332049,1713903041045,-500.0,0.00019178,2]
[323332051,1713903041056,-597.86424645,0.00019178,2]
[323332054,1713903041068,-500.0,0.00019178,2]
[323332056,1713903041078,-637.75535876,0.00019178,2]
[323332057,1713903041088,-500.0,0.00019178,2]
[323332060,1713903041098,-500.0,0.00019178,2]
[323332061,1713903041109,-500.0,0.00019178,2]
[323332064,1713903041120,-489.03444578,0.00019178,2]
[323332066,1713903041130,-520.03615163,0.00019178,2]
[323332068,1713903041140,-500.0,0.00019178,2]
[323332070,1713903041150,-500.0,0.00019178,2]
[323332072,1713903041159,-500.0,0.00019178,2]
[323332074,1713903041168,-1536.78,0.00019178,2]
[323332076,1713903041178,-500.0,0.00019178,2]
[323332078,1713903041187,-509.45276576,0.00019178,2]
[323332080,1713903041196,-500.0,0.00019178,2]
[323332082,1713903041205,-500.0,0.00019178,2]
[323332084,1713903041214,-512.65137034,0.00019178,2]
[323332086,1713903041224,-500.0,0.00019178,2]
[323332088,1713903041234,-1128.31,0.00019178,2]
[323332090,1713903041247,-500.0,0.00019178,2]
[323332092,1713903041256,-500.0,0.00019178,2]
[323332094,1713903041267,-501.95518416,0.00019178,2]
[323332096,1713903041276,-1230.65,0.00019178,2]
[323332098,1713903041286,-908.18,0.00019178,2]
[323332100,1713903041297,-500.0,0.00019178,2]
[323332102,1713903041308,-500.0,0.00019178,2]
[323332104,1713903041317,-500.0,0.00019178,2]
[323332105,1713903041326,-500.0,0.00019178,2]
[323332107,1713903041336,-500.0,0.00019178,2]
[323332109,1713903041347,-500.0,0.00019178,2]